Department family,Entity,Date,Expense type,Expense area,Supplier,Transaction number,Amount,VAT registration number
Dept of Health,MHRA,07/02/2017,Application Services and Maintenance,Information Management,ACCENTURE,600110686,26500,788629066
Dept of Health,MHRA,07/02/2017,Networks,Information Management,CDW LIMTED,600109915,119077.79,902194939
Dept of Health,MHRA,07/02/2017,Solicitors,Policy,GOVERNMENT LEGAL DEPARTMENT,600110547,154500,888823066
Dept of Health,MHRA,07/02/2017,Software & Licenses,Information Management,TRUSTMARQUE SOLUTIONS LTD,600110627,54615.74,394593601
Dept of Health,MHRA,10/02/2017,Application Services and Maintenance,Information Management,ACCENTURE,600110708,246500,788629066
Dept of Health,MHRA,10/02/2017,UK Rail/Tube/Tram,Clinical Practice Research Datalink,CLARITY TRAVEL MANAGEMENT,600110739,907.4,197694731
Dept of Health,MHRA,10/02/2017,UK Taxi,Clinical Practice Research Datalink,CLARITY TRAVEL MANAGEMENT,600110739,51.54,197694731
Dept of Health,MHRA,10/02/2017,Committee T&S,Clinical Practice Research Datalink,CLARITY TRAVEL MANAGEMENT,600110739,235,197694731
Dept of Health,MHRA,10/02/2017,UK Rail/Tube/Tram,Communications,CLARITY TRAVEL MANAGEMENT,600110739,288.6,197694731
Dept of Health,MHRA,10/02/2017,UK Taxi,Communications,CLARITY TRAVEL MANAGEMENT,600110739,75.6,197694731
Dept of Health,MHRA,10/02/2017,Overseas Air,Communications,CLARITY TRAVEL MANAGEMENT,600110739,170.5,197694731
Dept of Health,MHRA,10/02/2017,Overseas Hotel/Accommodation,Communications,CLARITY TRAVEL MANAGEMENT,600110739,495.09,197694731
Dept of Health,MHRA,10/02/2017,Training inc T&S,Communications,CLARITY TRAVEL MANAGEMENT,600110739,159,197694731
Dept of Health,MHRA,10/02/2017,UK Hotel/Accommodation,Directorate,CLARITY TRAVEL MANAGEMENT,600110739,89.6,197694731
Dept of Health,MHRA,10/02/2017,UK Rail/Tube/Tram,Directorate,CLARITY TRAVEL MANAGEMENT,600110739,45.2,197694731
Dept of Health,MHRA,10/02/2017,Overseas Air,Directorate,CLARITY TRAVEL MANAGEMENT,600110739,154.54,197694731
Dept of Health,MHRA,10/02/2017,Overseas Hotel/Accommodation,Directorate,CLARITY TRAVEL MANAGEMENT,600110739,213.71,197694731
Dept of Health,MHRA,10/02/2017,Committee T&S,Directorate,CLARITY TRAVEL MANAGEMENT,600110739,-10.4,197694731
Dept of Health,MHRA,10/02/2017,Training inc T&S,Directorate,CLARITY TRAVEL MANAGEMENT,600110739,5457.97,197694731
Dept of Health,MHRA,10/02/2017,UK Rail/Tube/Tram,Finance & Procurement,CLARITY TRAVEL MANAGEMENT,600110739,384.5,197694731
Dept of Health,MHRA,10/02/2017,Training inc T&S,Finance & Procurement,CLARITY TRAVEL MANAGEMENT,600110739,83.85,197694731
Dept of Health,MHRA,10/02/2017,UK Rail/Tube/Tram,Information Management,CLARITY TRAVEL MANAGEMENT,600110739,179.9,197694731
Dept of Health,MHRA,10/02/2017,UK Air,"Inspection, Enforcement & Standards",CLARITY TRAVEL MANAGEMENT,600110739,5387.79,197694731
Dept of Health,MHRA,10/02/2017,UK Ferry,"Inspection, Enforcement & Standards",CLARITY TRAVEL MANAGEMENT,600110739,69,197694731
Dept of Health,MHRA,10/02/2017,UK Hotel/Accommodation,"Inspection, Enforcement & Standards",CLARITY TRAVEL MANAGEMENT,600110739,18286.07,197694731
Dept of Health,MHRA,10/02/2017,UK Rail/Tube/Tram,"Inspection, Enforcement & Standards",CLARITY TRAVEL MANAGEMENT,600110739,16590.6,197694731
Dept of Health,MHRA,10/02/2017,Overseas Air,"Inspection, Enforcement & Standards",CLARITY TRAVEL MANAGEMENT,600110739,59025.24,197694731
Dept of Health,MHRA,10/02/2017,Overseas Hotel/Accommodation,"Inspection, Enforcement & Standards",CLARITY TRAVEL MANAGEMENT,600110739,8368.42,197694731
Dept of Health,MHRA,10/02/2017,Overseas Private Vehicle Hire,"Inspection, Enforcement & Standards",CLARITY TRAVEL MANAGEMENT,600110739,1192.44,197694731
Dept of Health,MHRA,10/02/2017,Overseas Rail/Tram,"Inspection, Enforcement & Standards",CLARITY TRAVEL MANAGEMENT,600110739,527.5,197694731
Dept of Health,MHRA,10/02/2017,Passport/Visa,"Inspection, Enforcement & Standards",CLARITY TRAVEL MANAGEMENT,600110739,735.56,197694731
Dept of Health,MHRA,10/02/2017,Committee T&S,"Inspection, Enforcement & Standards",CLARITY TRAVEL MANAGEMENT,600110739,293.01,197694731
Dept of Health,MHRA,10/02/2017,Training inc T&S,"Inspection, Enforcement & Standards",CLARITY TRAVEL MANAGEMENT,600110739,11308.39,197694731
Dept of Health,MHRA,10/02/2017,UK Air,Licensing,CLARITY TRAVEL MANAGEMENT,600110739,178.8,197694731
Dept of Health,MHRA,10/02/2017,UK Rail/Tube/Tram,Licensing,CLARITY TRAVEL MANAGEMENT,600110739,140.3,197694731
Dept of Health,MHRA,10/02/2017,Overseas Air,Licensing,CLARITY TRAVEL MANAGEMENT,600110739,312.21,197694731
Dept of Health,MHRA,10/02/2017,Overseas Hotel/Accommodation,Licensing,CLARITY TRAVEL MANAGEMENT,600110739,359.16,197694731
Dept of Health,MHRA,10/02/2017,Overseas Rail/Tram,Licensing,CLARITY TRAVEL MANAGEMENT,600110739,153,197694731
Dept of Health,MHRA,10/02/2017,Committee T&S,Licensing,CLARITY TRAVEL MANAGEMENT,600110739,974.99,197694731
Dept of Health,MHRA,10/02/2017,Training inc T&S,Licensing,CLARITY TRAVEL MANAGEMENT,600110739,1095.05,197694731
Dept of Health,MHRA,10/02/2017,UK Hotel/Accommodation,Medical Devices,CLARITY TRAVEL MANAGEMENT,600110739,732.09,197694731
Dept of Health,MHRA,10/02/2017,UK Rail/Tube/Tram,Medical Devices,CLARITY TRAVEL MANAGEMENT,600110739,1044.55,197694731
Dept of Health,MHRA,10/02/2017,Overseas Air,Medical Devices,CLARITY TRAVEL MANAGEMENT,600110739,1537,197694731
Dept of Health,MHRA,10/02/2017,Overseas Hotel/Accommodation,Medical Devices,CLARITY TRAVEL MANAGEMENT,600110739,609.49,197694731
Dept of Health,MHRA,10/02/2017,Overseas Rail/Tram,Medical Devices,CLARITY TRAVEL MANAGEMENT,600110739,267,197694731
Dept of Health,MHRA,10/02/2017,Training inc T&S,Medical Devices,CLARITY TRAVEL MANAGEMENT,600110739,1721.49,197694731
Dept of Health,MHRA,10/02/2017,UK Hotel/Accommodation,Policy,CLARITY TRAVEL MANAGEMENT,600110739,62,197694731
Dept of Health,MHRA,10/02/2017,UK Rail/Tube/Tram,Policy,CLARITY TRAVEL MANAGEMENT,600110739,160.8,197694731
Dept of Health,MHRA,10/02/2017,Overseas Rail/Tram,Policy,CLARITY TRAVEL MANAGEMENT,600110739,130.5,197694731
Dept of Health,MHRA,10/02/2017,Training inc T&S,Policy,CLARITY TRAVEL MANAGEMENT,600110739,167.51,197694731
Dept of Health,MHRA,10/02/2017,UK Rail/Tube/Tram,Vigilance and Risk Management of Medicines,CLARITY TRAVEL MANAGEMENT,600110739,38.3,197694731
Dept of Health,MHRA,10/02/2017,UK Taxi,Vigilance and Risk Management of Medicines,CLARITY TRAVEL MANAGEMENT,600110739,1243.12,197694731
Dept of Health,MHRA,10/02/2017,Overseas Air,Vigilance and Risk Management of Medicines,CLARITY TRAVEL MANAGEMENT,600110739,-93.42,197694731
Dept of Health,MHRA,10/02/2017,Training inc T&S,Vigilance and Risk Management of Medicines,CLARITY TRAVEL MANAGEMENT,600110739,2002.01,197694731
Dept of Health,MHRA,10/02/2017,Application Services and Maintenance,Information Management,REDROCK CONSULTING LTD,600110636,61895.24,862247715
Dept of Health,MHRA,10/02/2017,Application Services and Maintenance,Information Management,REDROCK CONSULTING LTD,600110702,183881.26,862247715
Dept of Health,MHRA,10/02/2017,Application Services and Maintenance,Information Management,REDROCK CONSULTING LTD,600110706,28953.74,862247715
Dept of Health,MHRA,13/02/2017,Application Services and Maintenance,Information Management,REDROCK CONSULTING LTD,600110692,51377.44,862247715
Dept of Health,MHRA,13/02/2017,IT Security,Information Management,REDROCK CONSULTING LTD,600110694,25403.9,862247715
Dept of Health,MHRA,13/02/2017,Software & Licenses,Information Management,TRUSTMARQUE SOLUTIONS LTD,600110624,297953.75,394593601
Dept of Health,MHRA,16/02/2017,Application Services and Maintenance,Information Management,CERTUS SOLUTIONS,600110835,79800,190984664
Dept of Health,MHRA,21/02/2017,Professional Services,Medical Devices,PHARMATELLIGENCE,600110800,60000,987036875
Dept of Health,MHRA,23/02/2017,Application Services and Maintenance,Information Management,ACCENTURE,600110765,28104,788629066
Dept of Health,MHRA,23/02/2017,Application Services and Maintenance,Information Management,COGNIZANT WORLDWIDE LIMTED,600110526,31860,123382928
Dept of Health,MHRA,27/02/2017,Laptops,Information Management,AGARAM TECHNOLGIES,600111026,33000,
Dept of Health,MHRA,27/02/2017,Application Services and Maintenance,Information Management,MATSSOFT LIMITED,600110102,37440,905232554
Dept of Health,MHRA,27/02/2017,Infrastructure Services and Maintenance,Information Management,REDROCK CONSULTING LTD,600110040,46160.99,862247715
Dept of Health,MHRA,27/02/2017,Application Services and Maintenance,Information Management,REDROCK CONSULTING LTD,600110643,58535.36,862247715
Dept of Health,MHRA,27/02/2017,Application Services and Maintenance,Information Management,REDROCK CONSULTING LTD,600110697,78070.8,862247715
Dept of Health,MHRA,28/02/2017,Application Services and Maintenance,Information Management,ACCENTURE,600111124,61422,788629066
Dept of Health,MHRA,28/02/2017,Premises Rental,Facilities & Estates,DEPARTMENT FOR BUSINESS INNOVATION AND SKILLS,600111121,65338,888825550
Dept of Health,MHRA,28/02/2017,Internal Audit,Finance & Procurement,DEPARTMENT OF HEALTH,600111120,31527.7,888815064
Dept of Health,MHRA,28/02/2017,Application Services and Maintenance,Information Management,REDROCK CONSULTING LTD,600110646,88856.76,862247715
